{"text_format":"1","workbook":"xlsx","n_sheets":3,"sheets":["使い方","月齢カレンダー","画像シート"],"not_rendered":{"charts":0,"images":63,"macros":1,"external_links":0,"defined_names":2,"comments":0,"pivot_tables":0},"unopened":[],"bounds":{"document_bytes":16777216,"sheet_cells":100000,"rows_first":2000,"rows_last":500,"rows_between":2000,"halvings":0,"cell_chars":16384,"cell_head_chars":4096},"cells_cut":0,"cells_raw":0,"read":"whole","date_system":"1900"}

{"sheet":"使い方","index":0,"n_rows":1,"n_cols":1,"rows_kept":1,"cut":false,"hidden":false,"merged":[[0,0,0,15]]}
["このテンプレートの使い方"]

{"sheet":"月齢カレンダー","index":1,"n_rows":91,"n_cols":26,"rows_kept":91,"cut":false,"hidden":false,"merged":[[3,1,3,2]]}
[null,null,null,null,null,null,null,null,null,null,null,null,null,null,null,null,null,null,null,null,null,null,null,null,0,"新月"]
[null,null,null,null,null,null,null,null,null,null,null,null,null,null,null,null,null,null,null,null,null,null,null,null,3,"三日月"]
[]
[null,"2017-01-01",null,null,null,null,null,null,null,null,null,null,null,null,null,null,null,null,null,null,null,null,null,"祝日設定",8,"上弦"]
[null,"日","月","火","水","木","金","土",null,null,null,null,null,null,null,null,null,null,null,null,null,null,null,"2011-01-01",12,"十三夜"]
[null,"2017-01-01","2017-01-02","2017-01-03","2017-01-04","2017-01-05","2017-01-06","2017-01-07",null,null,null,null,null,null,null,null,null,null,null,null,null,null,null,"2011-01-02",13,"十四夜"]
[null,{"$f":"IF(B6=\"\",\"\",MOD((LEFT(YEAR(B6),1)+MID(YEAR(B6),3,1)*10+MID(YEAR(B6),4,1))*11+MONTH(B6)+DAY(B6),30))","v":1},{"$f":"IF(C6=\"\",\"\",MOD((LEFT(YEAR(C6),1)+MID(YEAR(C6),3,1)*10+MID(YEAR(C6),4,1))*11+MONTH(C6)+DAY(C6),30))","v":2},3,4,5,6,7,null,null,null,null,null,null,null,null,null,null,null,null,null,null,null,"2011-01-03",14,"満月"]
[null,{"$f":"B7","v":1},{"$f":"C7","v":2},3,4,5,6,7,null,null,null,null,null,null,null,null,null,null,null,null,null,null,null,null,15,"十六夜"]
[null,{"$f":"IF(ISNA(VLOOKUP(B8,$Y$1:$Z$14,2,0)),\"\",VLOOKUP(B8,$Y$1:$Z$14,2,0))","v":""},{"$f":"IF(ISNA(VLOOKUP(C8,$Y$1:$Z$14,2,0)),\"\",VLOOKUP(C8,$Y$1:$Z$14,2,0))","v":""},{"$f":"IF(ISNA(VLOOKUP(D8,$Y$1:$Z$14,2,0)),\"\",VLOOKUP(D8,$Y$1:$Z$14,2,0))","v":"三日月"},"","","","",null,null,null,null,null,null,null,null,null,null,null,null,null,null,null,null,16,"十七夜"]
[null,null,null,null,null,null,null,null,null,null,null,null,null,null,null,null,null,null,null,null,null,null,null,null,17,"十八夜"]
[null,"2017-01-08","2017-01-09","2017-01-10","2017-01-11","2017-01-12","2017-01-13","2017-01-14",null,null,null,null,null,null,null,null,null,null,null,null,null,null,null,"2011-01-10",22,"下弦"]
[null,{"$f":"IF(B11=\"\",\"\",MOD((LEFT(YEAR(B11),1)+MID(YEAR(B11),3,1)*10+MID(YEAR(B11),4,1))*11+MONTH(B11)+DAY(B11),30))","v":8},{"$f":"IF(C11=\"\",\"\",MOD((LEFT(YEAR(C11),1)+MID(YEAR(C11),3,1)*10+MID(YEAR(C11),4,1))*11+MONTH(C11)+DAY(C11),30))","v":9},{"$f":"IF(D11=\"\",\"\",MOD((LEFT(YEAR(D11),1)+MID(YEAR(D11),3,1)*10+MID(YEAR(D11),4,1))*11+MONTH(D11)+DAY(D11),30))","v":10},{"$f":"IF(E11=\"\",\"\",MOD((LEFT(YEAR(E11),1)+MID(YEAR(E11),3,1)*10+MID(YEAR(E11),4,1))*11+MONTH(E11)+DAY(E11),30))","v":11},{"$f":"IF(F11=\"\",\"\",MOD((LEFT(YEAR(F11),1)+MID(YEAR(F11),3,1)*10+MID(YEAR(F11),4,1))*11+MONTH(F11)+DAY(F11),30))","v":12},{"$f":"IF(G11=\"\",\"\",MOD((LEFT(YEAR(G11),1)+MID(YEAR(G11),3,1)*10+MID(YEAR(G11),4,1))*11+MONTH(G11)+DAY(G11),30))","v":13},{"$f":"IF(H11=\"\",\"\",MOD((LEFT(YEAR(H11),1)+MID(YEAR(H11),3,1)*10+MID(YEAR(H11),4,1))*11+MONTH(H11)+DAY(H11),30))","v":14},null,null,null,null,null,null,null,null,null,null,null,null,null,null,null,"2011-02-11"]
[null,{"$f":"B12","v":8},{"$f":"C12","v":9},{"$f":"D12","v":10},{"$f":"E12","v":11},{"$f":"F12","v":12},{"$f":"G12","v":13},{"$f":"H12","v":14},null,null,null,null,null,null,null,null,null,null,null,null,null,null,null,null,25,"二十六夜"]
[null,{"$f":"IF(ISNA(VLOOKUP(B13,$Y$1:$Z$14,2,0)),\"\",VLOOKUP(B13,$Y$1:$Z$14,2,0))","v":"上弦"},{"$f":"IF(ISNA(VLOOKUP(C13,$Y$1:$Z$14,2,0)),\"\",VLOOKUP(C13,$Y$1:$Z$14,2,0))","v":""},{"$f":"IF(ISNA(VLOOKUP(D13,$Y$1:$Z$14,2,0)),\"\",VLOOKUP(D13,$Y$1:$Z$14,2,0))","v":""},{"$f":"IF(ISNA(VLOOKUP(E13,$Y$1:$Z$14,2,0)),\"\",VLOOKUP(E13,$Y$1:$Z$14,2,0))","v":""},{"$f":"IF(ISNA(VLOOKUP(F13,$Y$1:$Z$14,2,0)),\"\",VLOOKUP(F13,$Y$1:$Z$14,2,0))","v":"十三夜"},{"$f":"IF(ISNA(VLOOKUP(G13,$Y$1:$Z$14,2,0)),\"\",VLOOKUP(G13,$Y$1:$Z$14,2,0))","v":"十四夜"},{"$f":"IF(ISNA(VLOOKUP(H13,$Y$1:$Z$14,2,0)),\"\",VLOOKUP(H13,$Y$1:$Z$14,2,0))","v":"満月"},null,null,null,null,null,null,null,null,null,null,null,null,null,null,null,null,28,"晦"]
[]
[null,"2017-01-15","2017-01-16","2017-01-17","2017-01-18","2017-01-19","2017-01-20","2017-01-21",null,null,null,null,null,null,null,null,null,null,null,null,null,null,null,"2011-03-21"]
[null,{"$f":"IF(B16=\"\",\"\",MOD((LEFT(YEAR(B16),1)+MID(YEAR(B16),3,1)*10+MID(YEAR(B16),4,1))*11+MONTH(B16)+DAY(B16),30))","v":15},{"$f":"IF(C16=\"\",\"\",MOD((LEFT(YEAR(C16),1)+MID(YEAR(C16),3,1)*10+MID(YEAR(C16),4,1))*11+MONTH(C16)+DAY(C16),30))","v":16},{"$f":"IF(D16=\"\",\"\",MOD((LEFT(YEAR(D16),1)+MID(YEAR(D16),3,1)*10+MID(YEAR(D16),4,1))*11+MONTH(D16)+DAY(D16),30))","v":17},{"$f":"IF(E16=\"\",\"\",MOD((LEFT(YEAR(E16),1)+MID(YEAR(E16),3,1)*10+MID(YEAR(E16),4,1))*11+MONTH(E16)+DAY(E16),30))","v":18},{"$f":"IF(F16=\"\",\"\",MOD((LEFT(YEAR(F16),1)+MID(YEAR(F16),3,1)*10+MID(YEAR(F16),4,1))*11+MONTH(F16)+DAY(F16),30))","v":19},{"$f":"IF(G16=\"\",\"\",MOD((LEFT(YEAR(G16),1)+MID(YEAR(G16),3,1)*10+MID(YEAR(G16),4,1))*11+MONTH(G16)+DAY(G16),30))","v":20},{"$f":"IF(H16=\"\",\"\",MOD((LEFT(YEAR(H16),1)+MID(YEAR(H16),3,1)*10+MID(YEAR(H16),4,1))*11+MONTH(H16)+DAY(H16),30))","v":21},null,null,null,null,null,null,null,null,null,null,null,null,null,null,null,"2011-04-29"]
[null,{"$f":"B17","v":15},{"$f":"C17","v":16},{"$f":"D17","v":17},{"$f":"E17","v":18},{"$f":"F17","v":19},{"$f":"G17","v":20},{"$f":"H17","v":21}]
[null,{"$f":"IF(ISNA(VLOOKUP(B18,$Y$1:$Z$14,2,0)),\"\",VLOOKUP(B18,$Y$1:$Z$14,2,0))","v":"十六夜"},{"$f":"IF(ISNA(VLOOKUP(C18,$Y$1:$Z$14,2,0)),\"\",VLOOKUP(C18,$Y$1:$Z$14,2,0))","v":"十七夜"},{"$f":"IF(ISNA(VLOOKUP(D18,$Y$1:$Z$14,2,0)),\"\",VLOOKUP(D18,$Y$1:$Z$14,2,0))","v":"十八夜"},{"$f":"IF(ISNA(VLOOKUP(E18,$Y$1:$Z$14,2,0)),\"\",VLOOKUP(E18,$Y$1:$Z$14,2,0))","v":""},{"$f":"IF(ISNA(VLOOKUP(F18,$Y$1:$Z$14,2,0)),\"\",VLOOKUP(F18,$Y$1:$Z$14,2,0))","v":""},{"$f":"IF(ISNA(VLOOKUP(G18,$Y$1:$Z$14,2,0)),\"\",VLOOKUP(G18,$Y$1:$Z$14,2,0))","v":""},{"$f":"IF(ISNA(VLOOKUP(H18,$Y$1:$Z$14,2,0)),\"\",VLOOKUP(H18,$Y$1:$Z$14,2,0))","v":""}]
[]
[null,"2017-01-22","2017-01-23","2017-01-24","2017-01-25","2017-01-26","2017-01-27","2017-01-28",null,null,null,null,null,null,null,null,null,null,null,null,null,null,null,"2011-05-03"]
[null,{"$f":"IF(B21=\"\",\"\",MOD((LEFT(YEAR(B21),1)+MID(YEAR(B21),3,1)*10+MID(YEAR(B21),4,1))*11+MONTH(B21)+DAY(B21),30))","v":22},{"$f":"IF(C21=\"\",\"\",MOD((LEFT(YEAR(C21),1)+MID(YEAR(C21),3,1)*10+MID(YEAR(C21),4,1))*11+MONTH(C21)+DAY(C21),30))","v":23},{"$f":"IF(D21=\"\",\"\",MOD((LEFT(YEAR(D21),1)+MID(YEAR(D21),3,1)*10+MID(YEAR(D21),4,1))*11+MONTH(D21)+DAY(D21),30))","v":24},{"$f":"IF(E21=\"\",\"\",MOD((LEFT(YEAR(E21),1)+MID(YEAR(E21),3,1)*10+MID(YEAR(E21),4,1))*11+MONTH(E21)+DAY(E21),30))","v":25},{"$f":"IF(F21=\"\",\"\",MOD((LEFT(YEAR(F21),1)+MID(YEAR(F21),3,1)*10+MID(YEAR(F21),4,1))*11+MONTH(F21)+DAY(F21),30))","v":26},{"$f":"IF(G21=\"\",\"\",MOD((LEFT(YEAR(G21),1)+MID(YEAR(G21),3,1)*10+MID(YEAR(G21),4,1))*11+MONTH(G21)+DAY(G21),30))","v":27},{"$f":"IF(H21=\"\",\"\",MOD((LEFT(YEAR(H21),1)+MID(YEAR(H21),3,1)*10+MID(YEAR(H21),4,1))*11+MONTH(H21)+DAY(H21),30))","v":28},null,null,null,null,null,null,null,null,null,null,null,null,null,null,null,"2011-05-04"]
[null,{"$f":"B22","v":22},{"$f":"C22","v":23},{"$f":"D22","v":24},{"$f":"E22","v":25},{"$f":"F22","v":26},{"$f":"G22","v":27},{"$f":"H22","v":28}]
[null,{"$f":"IF(ISNA(VLOOKUP(B23,$Y$1:$Z$14,2,0)),\"\",VLOOKUP(B23,$Y$1:$Z$14,2,0))","v":"下弦"},{"$f":"IF(ISNA(VLOOKUP(C23,$Y$1:$Z$14,2,0)),\"\",VLOOKUP(C23,$Y$1:$Z$14,2,0))","v":""},{"$f":"IF(ISNA(VLOOKUP(D23,$Y$1:$Z$14,2,0)),\"\",VLOOKUP(D23,$Y$1:$Z$14,2,0))","v":""},{"$f":"IF(ISNA(VLOOKUP(E23,$Y$1:$Z$14,2,0)),\"\",VLOOKUP(E23,$Y$1:$Z$14,2,0))","v":"二十六夜"},{"$f":"IF(ISNA(VLOOKUP(F23,$Y$1:$Z$14,2,0)),\"\",VLOOKUP(F23,$Y$1:$Z$14,2,0))","v":""},{"$f":"IF(ISNA(VLOOKUP(G23,$Y$1:$Z$14,2,0)),\"\",VLOOKUP(G23,$Y$1:$Z$14,2,0))","v":""},{"$f":"IF(ISNA(VLOOKUP(H23,$Y$1:$Z$14,2,0)),\"\",VLOOKUP(H23,$Y$1:$Z$14,2,0))","v":"晦"}]
[]
[null,"2017-01-29","2017-01-30","2017-01-31",null,null,null,null,null,null,null,null,null,null,null,null,null,null,null,null,null,null,null,"2011-05-05"]
[null,{"$f":"IF(B26=\"\",\"\",MOD((LEFT(YEAR(B26),1)+MID(YEAR(B26),3,1)*10+MID(YEAR(B26),4,1))*11+MONTH(B26)+DAY(B26),30))","v":29},{"$f":"IF(C26=\"\",\"\",MOD((LEFT(YEAR(C26),1)+MID(YEAR(C26),3,1)*10+MID(YEAR(C26),4,1))*11+MONTH(C26)+DAY(C26),30))","v":0},{"$f":"IF(D26=\"\",\"\",MOD((LEFT(YEAR(D26),1)+MID(YEAR(D26),3,1)*10+MID(YEAR(D26),4,1))*11+MONTH(D26)+DAY(D26),30))","v":1},{"$f":"IF(E26=\"\",\"\",MOD((LEFT(YEAR(E26),1)+MID(YEAR(E26),3,1)*10+MID(YEAR(E26),4,1))*11+MONTH(E26)+DAY(E26),30))","v":""},{"$f":"IF(F26=\"\",\"\",MOD((LEFT(YEAR(F26),1)+MID(YEAR(F26),3,1)*10+MID(YEAR(F26),4,1))*11+MONTH(F26)+DAY(F26),30))","v":""},{"$f":"IF(G26=\"\",\"\",MOD((LEFT(YEAR(G26),1)+MID(YEAR(G26),3,1)*10+MID(YEAR(G26),4,1))*11+MONTH(G26)+DAY(G26),30))","v":""},{"$f":"IF(H26=\"\",\"\",MOD((LEFT(YEAR(H26),1)+MID(YEAR(H26),3,1)*10+MID(YEAR(H26),4,1))*11+MONTH(H26)+DAY(H26),30))","v":""},null,null,null,null,null,null,null,null,null,null,null,null,null,null,null,"2011-07-18"]
[null,{"$f":"B27","v":29},{"$f":"C27","v":0},{"$f":"D27","v":1},{"$f":"E27","v":""},{"$f":"F27","v":""},{"$f":"G27","v":""},{"$f":"H27","v":""}]
[null,{"$f":"IF(ISNA(VLOOKUP(B28,$Y$1:$Z$14,2,0)),\"\",VLOOKUP(B28,$Y$1:$Z$14,2,0))","v":""},{"$f":"IF(ISNA(VLOOKUP(C28,$Y$1:$Z$14,2,0)),\"\",VLOOKUP(C28,$Y$1:$Z$14,2,0))","v":"新月"},{"$f":"IF(ISNA(VLOOKUP(D28,$Y$1:$Z$14,2,0)),\"\",VLOOKUP(D28,$Y$1:$Z$14,2,0))","v":""},{"$f":"IF(ISNA(VLOOKUP(E28,$Y$1:$Z$14,2,0)),\"\",VLOOKUP(E28,$Y$1:$Z$14,2,0))","v":""},{"$f":"IF(ISNA(VLOOKUP(F28,$Y$1:$Z$14,2,0)),\"\",VLOOKUP(F28,$Y$1:$Z$14,2,0))","v":""},{"$f":"IF(ISNA(VLOOKUP(G28,$Y$1:$Z$14,2,0)),\"\",VLOOKUP(G28,$Y$1:$Z$14,2,0))","v":""},{"$f":"IF(ISNA(VLOOKUP(H28,$Y$1:$Z$14,2,0)),\"\",VLOOKUP(H28,$Y$1:$Z$14,2,0))","v":""}]
[]
[null,null,null,null,null,null,null,null,null,null,null,null,null,null,null,null,null,null,null,null,null,null,null,"2011-09-19"]
[null,null,null,null,null,null,null,null,null,null,null,null,null,null,null,null,null,null,null,null,null,null,null,"2011-09-23"]
[null,null,null,null,null,null,null,null,null,null,null,null,null,null,null,null,null,null,null,null,null,null,null,"2011-10-10"]
[null,null,null,null,null,null,null,null,null,null,null,null,null,null,null,null,null,null,null,null,null,null,null,"2011-11-03"]
[null,null,null,null,null,null,null,null,null,null,null,null,null,null,null,null,null,null,null,null,null,null,null,"2011-11-23"]
[null,null,null,null,null,null,null,null,null,null,null,null,null,null,null,null,null,null,null,null,null,null,null,"2011-12-23"]
[null,null,null,null,null,null,null,null,null,null,null,null,null,null,null,null,null,null,null,null,null,null,null,"2011-12-30"]
[null,null,null,null,null,null,null,null,null,null,null,null,null,null,null,null,null,null,null,null,null,null,null,"2011-12-31"]
[null,null,null,null,null,null,null,null,null,null,null,null,null,null,null,null,null,null,null,null,null,null,null,"2012-01-01"]
[null,null,null,null,null,null,null,null,null,null,null,null,null,null,null,null,null,null,null,null,null,null,null,"2012-01-02"]
[null,null,null,null,null,null,null,null,null,null,null,null,null,null,null,null,null,null,null,null,null,null,null,"2012-01-03"]
[null,null,null,null,null,null,null,null,null,null,null,null,null,null,null,null,null,null,null,null,null,null,null,"2012-01-09"]
[null,null,null,null,null,null,null,null,null,null,null,null,null,null,null,null,null,null,null,null,null,null,null,"2012-02-11"]
[null,null,null,null,null,null,null,null,null,null,null,null,null,null,null,null,null,null,null,null,null,null,null,"2012-03-20"]
[null,null,null,null,null,null,null,null,null,null,null,null,null,null,null,null,null,null,null,null,null,null,null,"2012-04-29"]
[null,null,null,null,null,null,null,null,null,null,null,null,null,null,null,null,null,null,null,null,null,null,null,"2012-04-30"]
[null,null,null,null,null,null,null,null,null,null,null,null,null,null,null,null,null,null,null,null,null,null,null,"2012-05-03"]
[null,null,null,null,null,null,null,null,null,null,null,null,null,null,null,null,null,null,null,null,null,null,null,"2012-05-04"]
[null,null,null,null,null,null,null,null,null,null,null,null,null,null,null,null,null,null,null,null,null,null,null,"2012-05-05"]
[null,null,null,null,null,null,null,null,null,null,null,null,null,null,null,null,null,null,null,null,null,null,null,"2012-07-16"]
[null,null,null,null,null,null,null,null,null,null,null,null,null,null,null,null,null,null,null,null,null,null,null,"2012-09-17"]
[null,null,null,null,null,null,null,null,null,null,null,null,null,null,null,null,null,null,null,null,null,null,null,"2012-09-22"]
[null,null,null,null,null,null,null,null,null,null,null,null,null,null,null,null,null,null,null,null,null,null,null,"2012-10-08"]
[null,null,null,null,null,null,null,null,null,null,null,null,null,null,null,null,null,null,null,null,null,null,null,"2012-11-03"]
[null,null,null,null,null,null,null,null,null,null,null,null,null,null,null,null,null,null,null,null,null,null,null,"2012-11-23"]
[null,null,null,null,null,null,null,null,null,null,null,null,null,null,null,null,null,null,null,null,null,null,null,"2012-12-23"]
[null,null,null,null,null,null,null,null,null,null,null,null,null,null,null,null,null,null,null,null,null,null,null,"2012-12-24"]
[null,null,null,null,null,null,null,null,null,null,null,null,null,null,null,null,null,null,null,null,null,null,null,"2013-01-01"]
[null,null,null,null,null,null,null,null,null,null,null,null,null,null,null,null,null,null,null,null,null,null,null,"2013-01-14"]
[null,null,null,null,null,null,null,null,null,null,null,null,null,null,null,null,null,null,null,null,null,null,null,"2013-02-11"]
[null,null,null,null,null,null,null,null,null,null,null,null,null,null,null,null,null,null,null,null,null,null,null,"2013-03-20"]
[null,null,null,null,null,null,null,null,null,null,null,null,null,null,null,null,null,null,null,null,null,null,null,"2013-04-29"]
[null,null,null,null,null,null,null,null,null,null,null,null,null,null,null,null,null,null,null,null,null,null,null,"2013-05-03"]
[null,null,null,null,null,null,null,null,null,null,null,null,null,null,null,null,null,null,null,null,null,null,null,"2013-05-04"]
[null,null,null,null,null,null,null,null,null,null,null,null,null,null,null,null,null,null,null,null,null,null,null,"2013-05-05"]
[null,null,null,null,null,null,null,null,null,null,null,null,null,null,null,null,null,null,null,null,null,null,null,"2013-05-06"]
[null,null,null,null,null,null,null,null,null,null,null,null,null,null,null,null,null,null,null,null,null,null,null,"2013-07-15"]
[null,null,null,null,null,null,null,null,null,null,null,null,null,null,null,null,null,null,null,null,null,null,null,"2013-09-16"]
[null,null,null,null,null,null,null,null,null,null,null,null,null,null,null,null,null,null,null,null,null,null,null,"2013-09-23"]
[null,null,null,null,null,null,null,null,null,null,null,null,null,null,null,null,null,null,null,null,null,null,null,"2013-10-14"]
[null,null,null,null,null,null,null,null,null,null,null,null,null,null,null,null,null,null,null,null,null,null,null,"2013-11-03"]
[null,null,null,null,null,null,null,null,null,null,null,null,null,null,null,null,null,null,null,null,null,null,null,"2013-11-04"]
[null,null,null,null,null,null,null,null,null,null,null,null,null,null,null,null,null,null,null,null,null,null,null,"2013-11-23"]
[null,null,null,null,null,null,null,null,null,null,null,null,null,null,null,null,null,null,null,null,null,null,null,"2013-12-23"]
[null,null,null,null,null,null,null,null,null,null,null,null,null,null,null,null,null,null,null,null,null,null,null,"2014-01-01"]
[null,null,null,null,null,null,null,null,null,null,null,null,null,null,null,null,null,null,null,null,null,null,null,"2014-01-13"]
[null,null,null,null,null,null,null,null,null,null,null,null,null,null,null,null,null,null,null,null,null,null,null,"2014-02-11"]
[null,null,null,null,null,null,null,null,null,null,null,null,null,null,null,null,null,null,null,null,null,null,null,"2014-03-21"]
[null,null,null,null,null,null,null,null,null,null,null,null,null,null,null,null,null,null,null,null,null,null,null,"2014-04-29"]
[null,null,null,null,null,null,null,null,null,null,null,null,null,null,null,null,null,null,null,null,null,null,null,"2014-05-03"]
[null,null,null,null,null,null,null,null,null,null,null,null,null,null,null,null,null,null,null,null,null,null,null,"2014-05-04"]
[null,null,null,null,null,null,null,null,null,null,null,null,null,null,null,null,null,null,null,null,null,null,null,"2014-05-05"]
[null,null,null,null,null,null,null,null,null,null,null,null,null,null,null,null,null,null,null,null,null,null,null,"2014-05-06"]
[null,null,null,null,null,null,null,null,null,null,null,null,null,null,null,null,null,null,null,null,null,null,null,"2014-07-21"]
[null,null,null,null,null,null,null,null,null,null,null,null,null,null,null,null,null,null,null,null,null,null,null,"2014-09-15"]
[null,null,null,null,null,null,null,null,null,null,null,null,null,null,null,null,null,null,null,null,null,null,null,"2014-09-23"]
[null,null,null,null,null,null,null,null,null,null,null,null,null,null,null,null,null,null,null,null,null,null,null,"2014-10-13"]
[null,null,null,null,null,null,null,null,null,null,null,null,null,null,null,null,null,null,null,null,null,null,null,"2014-11-03"]
[null,null,null,null,null,null,null,null,null,null,null,null,null,null,null,null,null,null,null,null,null,null,null,"2014-11-23"]
[null,null,null,null,null,null,null,null,null,null,null,null,null,null,null,null,null,null,null,null,null,null,null,"2014-11-24"]
[null,null,null,null,null,null,null,null,null,null,null,null,null,null,null,null,null,null,null,null,null,null,null,"2014-12-23"]

{"sheet":"画像シート","index":2,"n_rows":31,"n_cols":2,"rows_kept":31,"cut":false,"hidden":true,"merged":[]}
[null,22]
[null,23]
[null,24]
[null,25]
[null,26]
[null,27]
[null,28]
[null,29]
[null,30]
[null,1]
[null,2]
[null,3]
[null,4]
[null,5]
[null,6]
[null,7]
[null,8]
[null,9]
[null,10]
[null,11]
[null,12]
[null,13]
[null,14]
[null,15]
[null,16]
[null,17]
[null,18]
[null,19]
[null,20]
[null,21]
[null,22]